fUSD/lending_fUSD_20251226
["ID","MTS","AMOUNT","RATE_DAILY","PERIOD"]
[399850948,1766743846424,-465.05,0.00038381,2]
[399850949,1766743846434,-465.05,0.00038381,2]
[399850950,1766743846444,-465.05,0.00038381,2]
[399850951,1766743846454,-465.05,0.00038381,2]
[399850952,1766743846464,-5259.02179197,0.0003839,4]
[399850953,1766743846473,-640.24385345,0.0003846,2]
[399850954,1766743846484,-150.0,0.00038512,7]
[399850955,1766743846493,-1258.0,0.00038561,20]
[399850956,1766743846504,-5259.02179197,0.00038565,4]
[399850957,1766743846513,-1220.66,0.00038575,2]
[399850958,1766743846523,-1220.66,0.00038575,2]
[399850959,1766743846532,-554.37,0.00038575,2]
[399850960,1766743846542,-439.13,0.00038575,2]
[399850961,1766743846552,-554.37,0.00038575,2]
[399850962,1766743846562,-1220.66,0.00038575,2]
[399850963,1766743846571,-554.37,0.00038575,2]
[399850964,1766743846580,-554.37,0.00038575,2]
[399850965,1766743846590,-554.37,0.00038575,2]
[399850966,1766743846600,-547.01,0.00038575,2]
[399850967,1766743846609,-554.37,0.00038575,2]
[399850968,1766743846618,-150.0,0.00038575,2]
[399850969,1766743846628,-150.0,0.00038575,2]
[399850970,1766743846638,-1220.66,0.00038575,2]
[399850971,1766743846648,-300.0,0.00038575,2]
[399850972,1766743846658,-150.0,0.0003861,30]
[399850973,1766743846668,-151.17267518,0.0003861,30]
[399850974,1766743846677,-2372.0,0.00038646,5]
[399850975,1766743846687,-150.0,0.00038658,7]
[399850976,1766743846697,-150.0,0.0003875,7]
[399850977,1766743846707,-150.0,0.00038805,7]
[399850978,1766743846716,-5259.02179197,0.00038829,4]
[399850979,1766743846726,-1000.0,0.00038839,2]
[399850980,1766743846735,-2071.49,0.00038904,120]
[399850981,1766743846745,-150.0,0.00038927,7]
[399850982,1766743846754,-150.0,0.00038951,7]
[399850983,1766743846764,-1258.0,0.00038955,20]
[399850984,1766743846773,-73626.3050876,0.0003899,4]
[399850985,1766743846783,-50000.0,0.00039,49]
[399850986,1766743846792,-50000.0,0.00039,39]
[399850987,1766743846802,-50000.0,0.00039,29]
[399850988,1766743846812,-540.182149,0.00039,120]
[399850989,1766743846821,-151.0,0.00039,120]
[399850990,1766743846831,-151.0,0.00039,120]
[399850991,1766743846893,-151.0,0.00039,120]
[399850992,1766743846902,-151.0,0.00039,60]
[399850993,1766743846912,-152.993199,0.00039,120]
[399850994,1766743846921,-151.0,0.00039,2]
[399850995,1766743846931,-151.0,0.00039,2]
[399850996,1766743846940,-151.0,0.00039,120]
[399850997,1766743846950,-151.0,0.00039,120]
[399850998,1766743846959,-151.0,0.00039,120]
[399850999,1766743846968,-151.0,0.00039,120]
[399851000,1766743846978,-151.0,0.00039,120]
[399851001,1766743846987,-216.573288,0.00039,120]
[399851002,1766743846996,-159.163995,0.00039,120]
[399851003,1766743847006,-301.767671,0.00039,120]
[399851004,1766743847015,-301.767671,0.00039,120]
[399851005,1766743847024,-301.767671,0.00039,120]
[399851006,1766743847034,-301.767671,0.00039,120]
[399851007,1766743847043,-151.0,0.00039,120]
[399851008,1766743847053,-151.0,0.00039,120]
[399851009,1766743847062,-151.0,0.00039,120]
[399851010,1766743847071,-173.346932,0.00039,120]
[399851012,1766743847080,-173.346932,0.00039,120]
[399851013,1766743847089,-151.0,0.00039,120]
[399851014,1766743847098,-173.346932,0.00039,120]
[399851015,1766743847107,-151.0,0.00039,120]
[399851016,1766743847115,-173.346938,0.00039,120]
[399851017,1766743847123,-663.93287602,0.00039008,2]
[399851018,1766743847132,-150.0,0.00039098,7]
[399851019,1766743847141,-150.0,0.00039203,2]
[399851020,1766743847150,-150.0,0.00039203,2]
[399851021,1766743847160,-150.0,0.00039203,2]
[399851022,1766743847170,-465.05,0.00039203,2]
[399851023,1766743847179,-465.05,0.00039203,2]
[399851024,1766743847189,-465.05,0.00039203,2]
[399851025,1766743847198,-465.05,0.00039203,2]
[399851026,1766743847207,-465.05,0.00039203,2]
[399851027,1766743847216,-465.05,0.00039203,2]
[399851028,1766743847225,-465.05,0.00039203,2]
[399851029,1766743847238,-465.05,0.00039203,2]
[399851030,1766743847252,-465.05,0.00039203,2]
[399851031,1766743847261,-465.05,0.00039203,2]
[399851032,1766743847271,-488.23,0.00039221,120]
[399851033,1766743847280,-150.0,0.00039244,7]
[399851034,1766743847291,-166.66,0.00039281,2]
[399851035,1766743847300,-150.0,0.00039281,7]
[399851036,1766743847309,-150.0,0.00039281,7]
[399851037,1766743847321,-1258.0,0.00039348,20]
[399851038,1766743847330,-150.0,0.00039391,7]
[399851039,1766743847340,-150.0,0.00039397,120]
[399851040,1766743847350,-150.0,0.00039397,2]
[399851041,1766743847359,-150.0,0.00039397,2]
[399851042,1766743847368,-333.08,0.00039397,2]
[399851043,1766743847377,-554.37,0.00039397,2]
[399851044,1766743847386,-150.0,0.00039397,2]
[399851045,1766743847395,-178.57,0.00039397,2]
[399851046,1766743847404,-301.31,0.00039397,2]
[399851047,1766743847413,-150.0,0.00039397,2]
[399851048,1766743847422,-150.0,0.00039397,2]
[399851049,1766743847431,-1220.66,0.00039397,2]
[399851050,1766743847440,-1220.66,0.00039397,2]
[399851051,1766743847449,-2441.32,0.00039397,2]
[399851052,1766743847458,-1220.66,0.00039397,2]
[399851053,1766743847468,-1220.66,0.00039397,2]
[399851054,1766743847477,-1220.66,0.00039397,2]
[399851055,1766743847486,-1220.66,0.00039397,2]
[399851056,1766743847495,-3245.60952065,0.00039417,2]
[399851057,1766743847505,-151.47,0.0003952,2]
[399851058,1766743847514,-150.0,0.00039537,7]
[399851059,1766743847524,-243.19376256,0.00039554,2]
[399851060,1766743847533,-346.92554585,0.00039554,2]
[399851061,1766743847541,-152.90144373,0.00039554,2]
[399851062,1766743847550,-298.26089446,0.00039554,2]
[399851063,1766743847559,-578.20924308,0.00039555,2]
[399851064,1766743847573,-688.49839244,0.00039556,2]
[399851065,1766743847583,-1543.69,0.000396,14]
[399851066,1766743847592,-4068.98,0.000396,14]
[399851067,1766743847602,-1483.0579161,0.00039634,2]
[399851068,1766743847612,-150.0,0.00039635,7]
[399851069,1766743847622,-150.0,0.00039635,7]
[399851070,1766743847632,-150.0,0.00039635,7]
[399851071,1766743847641,-150.0,0.00039635,7]
[399851072,1766743847651,-613.1,0.00039654,2]
[399851073,1766743847660,-150.0,0.00039684,7]
[399851074,1766743847669,-1258.0,0.00039742,20]
[399851075,1766743847679,-150.0,0.00039812,7]
[399851076,1766743847688,-150.0,0.0003983,7]
[399851077,1766743847698,-165248.71270588,0.00039867,30]
[399851078,1766743847707,-300.0,0.0003989,30]
[399851079,1766743847717,-150.0,0.00039976,7]
[399851080,1766743847726,-50000.0,0.0004,40]
[399851081,1766743847735,-50000.0,0.0004,50]
[399851082,1766743847744,-50000.0,0.0004,60]
[399851083,1766743847753,-150.0,0.0004,60]
[399851084,1766743847763,-1500.61309067,0.0004,30]
[399851085,1766743847772,-151.0,0.0004,120]
[399851086,1766743847782,-261.492483,0.0004,60]
[399851087,1766743847791,-500.0,0.0004,120]
[399851088,1766743847801,-2071.49,0.0004,120]
[399851089,1766743847810,-713.97283296,0.00040104,2]
[399851090,1766743847819,-150.0,0.00040123,7]
[399851091,1766743847829,-1258.0,0.00040135,20]
[399851092,1766743847840,-7122.16413453,0.00040217,15]
[399851093,1766743847850,-150.0,0.00040219,2]
[399851094,1766743847860,-150.0,0.00040219,2]
[399851095,1766743847870,-150.0,0.00040219,2]
[399851096,1766743847881,-150.0,0.00040219,2]
[399851097,1766743847890,-150.0,0.00040219,2]
[399851098,1766743847900,-150.0,0.00040219,2]
[399851099,1766743847909,-150.0,0.00040219,2]
[399851100,1766743847918,-150.0,0.00040219,2]
[399851101,1766743847934,-150.0,0.00040219,2]
[399851102,1766743847944,-150.0,0.00040219,2]
[399851103,1766743847953,-150.52,0.00040219,2]
[399851104,1766743847963,-150.0,0.00040219,2]
[399851105,1766743847974,-150.0,0.00040269,7]
[399851106,1766743847983,-150.0,0.00040342,7]
[399851107,1766743847993,-150.0,0.00040342,7]
[399851108,1766743848002,-150.0,0.00040342,7]
[399851109,1766743848012,-150.0,0.00040342,7]
[399851110,1766743848021,-150.0,0.00040342,7]
[399851111,1766743848031,-444.8,0.00040369,6]
[399851112,1766743848041,-150.0,0.00040416,7]
[399851113,1766743848050,-500.0,0.000405,120]
[399851114,1766743848059,-1258.0,0.00040529,20]
[399851115,1766743848069,-151.0,0.00040529,120]
[399851116,1766743848079,-150.0,0.00040562,7]
[399851117,1766743848089,-151.0,0.000406,120]
[399851118,1766743848099,-301.767671,0.000406,120]
[399851119,1766743848108,-301.767671,0.000406,120]
[399851120,1766743848118,-301.767671,0.000406,120]
[399851121,1766743848127,-301.767678,0.000406,120]
[399851122,1766743848137,-151.0,0.000406,120]
[399851123,1766743848147,-151.0,0.000406,120]
[399851124,1766743848156,-151.0,0.000406,120]
[399851125,1766743848165,-1543.69,0.000406,14]
[399851126,1766743848175,-4068.98,0.000406,14]
[399851127,1766743848185,-1600.0,0.00040609,120]
[399851128,1766743848194,-1327.0,0.00040619,2]
[399851129,1766743848204,-1610.0,0.00040619,2]
[399851130,1766743848214,-612.0,0.00040619,2]
[399851131,1766743848223,-432.0,0.00040619,2]
[399851132,1766743848232,-2430.0,0.00040619,2]
[399851133,1766743848245,-564.0,0.00040619,2]
[399851134,1766743848255,-740.38982778,0.00040652,2]
[399851135,1766743848264,-150.0,0.00040709,7]
[399851136,1766743848274,-350.0,0.00040712,50]
[399851137,1766743848285,-1000.0,0.000408,2]
[399851138,1766743848298,-150.0,0.00040855,7]
[399851139,1766743848308,-300.261752,0.00040869,103]
[399851140,1766743848320,-150.0,0.00040873,7]
[399851141,1766743848329,-5001.49701118,0.000409,120]
[399851142,1766743848339,-1543.69,0.000409,14]
[399851143,1766743848349,-4068.98,0.000409,14]
[399851144,1766743848359,-359.76179104,0.00040923,2]
[399851145,1766743848368,-440.6311978,0.00040923,2]
[399851146,1766743848378,-300.0,0.00040986,60]
[399851147,1766743848388,-50000.0,0.00041,41]
[399851148,1766743848397,-50000.0,0.00041,51]
[399851149,1766743848406,-50000.0,0.00041,61]
[399851150,1766743848416,-200.0,0.00041,2]
[399851151,1766743848426,-10012.37654199,0.00041,120]
[399851152,1766743848436,-151.0,0.00041,120]
[399851153,1766743848446,-170.0,0.00041,90]
[399851154,1766743848456,-500.0,0.00041,120]
[399851155,1766743848466,-151.0,0.00041,2]
[399851156,1766743848475,-151.0,0.00041,2]
[399851157,1766743848485,-151.0,0.00041,120]
[399851158,1766743848494,-151.0,0.00041,120]
[399851159,1766743848503,-151.0,0.00041,120]
[399851160,1766743848513,-150.0,0.00041001,7]
[399851161,1766743848523,-1483.0579161,0.00041008,2]
[399851162,1766743848532,-1350.2,0.00041041,7]
[399851163,1766743848542,-150.0,0.0004105,7]
[399851164,1766743848552,-150.0,0.0004105,7]
[399851165,1766743848561,-150.0,0.0004105,7]
[399851166,1766743848571,-150.0,0.0004105,7]
[399851167,1766743848580,-500.0,0.00041054,14]
[399851168,1766743848590,-500.0,0.00041054,14]
[399851169,1766743848600,-500.0,0.00041054,14]
[399851170,1766743848610,-300.0,0.00041068,22]
[399851171,1766743848620,-2071.49,0.00041095,120]
[399851172,1766743848630,-259.21,0.00041096,120]
[399851173,1766743848640,-326.89961089,0.00041096,2]
[399851174,1766743848651,-200.0,0.00041096,60]
[399851175,1766743848665,-200.0,0.00041096,20]
[399851176,1766743848674,-200.0,0.00041096,20]
[399851177,1766743848684,-200.0,0.00041096,20]
[399851178,1766743848693,-500.0,0.00041096,30]
[399851179,1766743848703,-500.0,0.00041123,30]
[399851180,1766743848713,-150.0,0.00041148,30]
[399851181,1766743848723,-500.0,0.00041151,30]
[399851182,1766743848733,-500.0,0.00041178,30]
[399851183,1766743848743,-767.7842514,0.000412,2]
[399851184,1766743848753,-1102.96524253,0.00041205,7]
[399851185,1766743848763,-597.89208137,0.00041206,30]
[399851186,1766743848773,-150.0,0.00041294,30]
[399851187,1766743848782,-2000.0,0.000414,2]
[399851188,1766743848792,-150.0,0.00041404,30]
[399851189,1766743848802,-150.0,0.00041404,30]
[399851190,1766743848812,-250.0,0.00041425,90]
[399851191,1766743848822,-150.0,0.00041441,30]
[399851192,1766743848831,-45979.4361007,0.00041467,2]
[399851193,1766743848841,-500.0,0.000415,120]
[399851194,1766743848863,-150.0,0.000415,120]
[399851195,1766743848887,-150.0,0.00041587,30]
[399851196,1766743848898,-1350.2,0.0004164,7]
[399851197,1766743848908,-150.0,0.00041644,30]
[399851198,1766743848920,-406.0,0.00041644,30]
[399851199,1766743848939,-150.0,0.00041644,30]
[399851200,1766743848959,-150.0,0.00041644,30]
[399851201,1766743848971,-554.37,0.00041644,30]
[399851202,1766743848982,-1220.66,0.00041644,30]
[399851203,1766743848992,-170.82,0.00041644,30]
[399851204,1766743849003,-150.0,0.00041644,30]
[399851205,1766743849014,-150.77,0.00041644,30]
[399851206,1766743849024,-341.64,0.00041644,30]
[399851207,1766743849034,-150.0,0.00041644,30]
[399851208,1766743849045,-554.37,0.00041644,30]
[399851209,1766743849056,-1220.66,0.00041644,30]
[399851210,1766743849065,-300.0,0.00041644,30]
[399851211,1766743849076,-300.0,0.00041644,30]
[399851212,1766743849086,-150.0,0.00041644,30]
[399851213,1766743849097,-150.0,0.00041644,30]
[399851214,1766743849107,-554.37,0.00041644,30]
[399851215,1766743849117,-1220.66,0.00041644,30]
[399851216,1766743849128,-1220.66,0.00041644,30]
[399851217,1766743849138,-554.37,0.00041644,30]
[399851218,1766743849147,-300.0,0.00041644,30]
[399851219,1766743849157,-170.82,0.00041644,30]
[399851220,1766743849166,-300.0,0.00041644,30]
[399851221,1766743849176,-1220.66,0.00041644,30]
[399851222,1766743849186,-1220.66,0.00041644,30]
[399851223,1766743849195,-500.0,0.00041644,120]
[399851224,1766743849205,-500.0,0.00041644,120]
[399851225,1766743849215,-500.0,0.00041644,120]
[399851226,1766743849225,-500.0,0.00041644,120]
[399851227,1766743849234,-500.0,0.00041644,120]
[399851228,1766743849246,-500.0,0.00041644,120]
[399851229,1766743849257,-500.0,0.00041644,120]
[399851230,1766743849267,-500.0,0.00041644,120]
[399851231,1766743849277,-500.0,0.00041644,120]
[399851232,1766743849287,-500.0,0.00041644,120]
[399851233,1766743849296,-500.0,0.00041644,120]
[399851234,1766743849306,-500.0,0.00041644,120]
[399851235,1766743849316,-500.0,0.00041644,120]
[399851236,1766743849326,-500.0,0.00041644,120]
[399851237,1766743849335,-500.0,0.00041644,120]
[399851238,1766743849344,-500.0,0.00041644,120]
[399851239,1766743849354,-500.0,0.00041644,120]
[399851240,1766743849363,-500.0,0.00041644,120]
[399851241,1766743849373,-500.0,0.00041644,120]
[399851242,1766743849382,-500.0,0.00041644,120]
[399851243,1766743849393,-500.0,0.00041644,120]
[399851244,1766743849402,-500.0,0.00041644,120]
[399851245,1766743849411,-500.0,0.00041644,120]
[399851246,1766743849421,-500.0,0.00041644,120]
[399851247,1766743849431,-500.0,0.00041644,120]
[399851248,1766743849440,-500.0,0.00041644,120]
[399851249,1766743849449,-531.0,0.00041644,120]
[399851250,1766743849459,-500.0,0.00041644,120]
[399851251,1766743849469,-500.0,0.00041644,120]
[399851252,1766743849478,-500.0,0.00041644,120]
[399851253,1766743849488,-500.0,0.00041644,120]
[399851254,1766743849497,-500.0,0.00041644,120]
[399851255,1766743849507,-500.0,0.00041644,120]
[399851256,1766743849517,-500.0,0.00041644,120]
[399851257,1766743849526,-500.0,0.00041644,120]
[399851258,1766743849535,-500.0,0.00041644,120]
[399851259,1766743849544,-500.0,0.00041644,120]
[399851260,1766743849554,-500.0,0.00041644,120]
[399851261,1766743849563,-500.0,0.00041644,120]
[399851262,1766743849572,-500.0,0.00041644,120]
[399851263,1766743849582,-500.0,0.00041644,120]
[399851264,1766743849591,-500.0,0.00041644,120]
[399851265,1766743849600,-849.0,0.00041644,120]
[399851266,1766743849610,-500.0,0.00041644,120]
[399851267,1766743849619,-500.0,0.00041644,120]
[399851268,1766743849629,-500.0,0.00041644,120]
[399851269,1766743849638,-500.0,0.00041644,120]
[399851270,1766743849647,-500.0,0.00041644,120]
[399851271,1766743849657,-500.0,0.00041644,120]
[399851272,1766743849667,-500.0,0.00041644,120]
[399851273,1766743849676,-500.0,0.00041644,120]
[399851274,1766743849686,-500.0,0.00041644,120]
[399851275,1766743849695,-500.0,0.00041644,120]
[399851276,1766743849705,-500.0,0.00041644,120]
[399851277,1766743849714,-500.0,0.00041644,120]
[399851278,1766743849733,-29.77869845,0.00041644,120]
[399851279,1766743849881,-470.22130155,0.00041644,120]
[399851280,1766743849890,-131.36003324,0.00041644,120]
[399851281,1766743849902,-368.63996676,0.00041644,120]
[399851282,1766743849911,-500.0,0.00041644,120]
[399851283,1766743849921,-500.0,0.00041644,120]
[399851284,1766743849931,-500.0,0.00041644,120]
[399851285,1766743849941,-500.0,0.00041644,120]
[399851286,1766743849950,-500.0,0.00041644,120]
[399851287,1766743849960,-500.0,0.00041644,120]
[399851288,1766743849970,-500.0,0.00041644,120]
[399851289,1766743849979,-500.0,0.00041644,120]
[399851290,1766743849988,-500.0,0.00041644,120]
[399851291,1766743849998,-500.0,0.00041644,120]
[399851292,1766743850012,-500.0,0.00041644,120]
[399851293,1766743850022,-500.0,0.00041644,120]
[399851294,1766743850031,-500.0,0.00041644,120]
[399851295,1766743850040,-500.0,0.00041644,120]
[399851296,1766743850050,-500.0,0.00041644,120]
[399851297,1766743850059,-500.0,0.00041644,120]
[399851298,1766743850068,-500.0,0.00041644,120]
[399851299,1766743850077,-500.0,0.00041644,120]
[399851300,1766743850087,-348.02577595,0.00041644,120]
[399851301,1766743850115,-151.97422405,0.00041644,120]
[399851302,1766743850129,-500.0,0.00041644,120]
[399851303,1766743850138,-464.93919976,0.00041644,120]
[399851304,1766743850153,-35.06080024,0.00041644,120]
[399851305,1766743850162,-500.0,0.00041644,120]
[399851306,1766743850172,-500.0,0.00041644,120]
[399851307,1766743850181,-40.93919976,0.00041644,120]
[399851308,1766743850275,-151.0,0.00016157,2]
[399851309,1766743850287,-500.0,0.0002,2]
[399851310,1766743850296,-244.32391637,0.00020001,2]
[399851311,1766743850307,-255.67608363,0.00020001,2]
[399851312,1766743850317,-500.0,0.00020002,2]
[399851313,1766743850327,-1220.66,0.00037753,2]
[399851314,1766743850336,-587.06080024,0.00041644,120]
[399851315,1766743850345,-500.0,0.00041644,120]
[399851316,1766743850356,-500.0,0.00041644,120]
[399851317,1766743850365,-500.0,0.00041644,120]
[399851318,1766743850375,-500.0,0.00041644,120]
[399851319,1766743850384,-500.0,0.00041644,120]
[399851320,1766743850394,-500.0,0.00041644,120]
[399851321,1766743850404,-500.0,0.00041644,120]
[399851322,1766743850414,-500.0,0.00041644,120]
[399851323,1766743850424,-500.0,0.00041644,120]
[399851324,1766743850433,-500.0,0.00041644,120]
[399851325,1766743850443,-500.0,0.00041644,120]
[399851326,1766743850452,-500.0,0.00041644,120]
[399851327,1766743850462,-500.0,0.00041644,120]
[399851328,1766743850472,-500.0,0.00041644,120]
[399851329,1766743850482,-252.91157963,0.00041644,120]
[399851330,1766743850493,-247.08842037,0.00041644,120]
[399851331,1766743850502,-500.0,0.00041644,120]
[399851332,1766743850511,-500.0,0.00041644,120]
[399851333,1766743850521,-500.0,0.00041644,120]
[399851334,1766743850530,-500.0,0.00041644,120]
[399851335,1766743850539,-500.0,0.00041644,120]
[399851336,1766743850549,-500.0,0.00041644,120]
[399851337,1766743850559,-500.0,0.00041644,120]
[399851338,1766743850568,-500.0,0.00041644,120]
[399851339,1766743850577,-500.0,0.00041644,120]
[399851340,1766743850586,-500.0,0.00041644,120]
[399851341,1766743850596,-500.0,0.00041644,120]
[399851342,1766743850605,-500.0,0.00041644,120]
[399851343,1766743850615,-500.0,0.00041644,120]
[399851344,1766743850624,-500.0,0.00041644,120]
[399851345,1766743850634,-500.0,0.00041644,120]
[399851346,1766743850643,-500.0,0.00041644,120]
[399851347,1766743850652,-500.0,0.00041644,120]
[399851348,1766743850661,-500.0,0.00041644,120]
[399851349,1766743850671,-500.0,0.00041644,120]
[399851350,1766743850680,-500.0,0.00041644,120]
[399851351,1766743850689,-500.0,0.00041644,120]
[399851352,1766743850698,-500.0,0.00041644,120]
[399851353,1766743850708,-500.0,0.00041644,120]
[399851354,1766743850717,-500.0,0.00041644,120]
[399851355,1766743850727,-500.0,0.00041644,120]
[399851356,1766743850736,-500.0,0.00041644,120]
[399851357,1766743850745,-500.0,0.00041644,120]
[399851358,1766743850755,-500.0,0.00041644,120]
[399851359,1766743850764,-500.0,0.00041644,120]
[399851360,1766743850774,-500.0,0.00041644,120]
[399851361,1766743850784,-500.0,0.00041644,120]
[399851362,1766743850793,-500.0,0.00041644,120]
[399851363,1766743850803,-500.0,0.00041644,120]
[399851364,1766743850813,-500.0,0.00041644,120]
[399851365,1766743850822,-500.0,0.00041644,120]
[399851366,1766743850832,-500.0,0.00041644,120]
[399851367,1766743850841,-500.0,0.00041644,120]
[399851368,1766743850852,-500.0,0.00041644,120]
[399851369,1766743850861,-500.0,0.00041644,120]
[399851370,1766743850871,-500.0,0.00041644,120]
[399851371,1766743850880,-500.0,0.00041644,120]
[399851372,1766743850889,-500.0,0.00041644,120]
[399851373,1766743850899,-500.0,0.00041644,120]
[399851374,1766743850909,-10.38006503,0.00041644,120]
[399851375,1766743850922,-489.61993497,0.00041644,120]
[399851376,1766743850931,-500.0,0.00041644,120]
[399851377,1766743850941,-500.0,0.00041644,120]
[399851378,1766743850951,-500.0,0.00041644,120]
[399851379,1766743850961,-500.0,0.00041644,120]
[399851380,1766743850970,-500.0,0.00041644,120]
[399851381,1766743850980,-500.0,0.00041644,120]
[399851382,1766743850990,-500.0,0.00041644,120]
[399851383,1766743851000,-500.0,0.00041644,120]
[399851384,1766743851010,-500.0,0.00041644,120]
[399851385,1766743851020,-500.0,0.00041644,120]
[399851386,1766743851030,-500.0,0.00041644,120]
[399851387,1766743851039,-500.0,0.00041644,120]
[399851388,1766743851154,-500.0,0.00041644,120]
[399851389,1766743851164,-500.0,0.00041644,120]
[399851390,1766743851174,-500.0,0.00041644,120]
[399851391,1766743851184,-500.0,0.00041644,120]
[399851392,1766743851193,-500.0,0.00041644,120]
[399851393,1766743851203,-500.0,0.00041644,120]
[399851394,1766743851213,-500.0,0.00041644,120]
[399851395,1766743851223,-500.0,0.00041644,120]
[399851396,1766743851233,-500.0,0.00041644,120]
[399851397,1766743851245,-500.0,0.00041644,120]
[399851398,1766743851255,-500.0,0.00041644,120]
[399851399,1766743851264,-500.0,0.00041644,120]
[399851400,1766743851274,-500.0,0.00041644,120]
[399851401,1766743851285,-500.0,0.00041644,120]
[399851402,1766743851295,-500.0,0.00041644,120]
[399851403,1766743851304,-500.0,0.00041644,120]
[399851404,1766743851314,-500.0,0.00041644,120]
[399851405,1766743851325,-500.0,0.00041644,120]
[399851406,1766743851335,-500.0,0.00041644,120]
[399851407,1766743851345,-500.0,0.00041644,120]
[399851408,1766743851355,-500.0,0.00041644,120]
[399851409,1766743851364,-500.0,0.00041644,120]
[399851410,1766743851374,-500.0,0.00041644,120]
[399851411,1766743851383,-500.0,0.00041644,120]
[399851412,1766743851392,-500.0,0.00041644,120]
[399851413,1766743851402,-500.0,0.00041644,120]
[399851414,1766743851411,-590.0,0.00041644,120]
[399851415,1766743851421,-151.0,0.00041644,120]
[399851416,1766743851430,-150.0,0.00041734,30]
[399851417,1766743851440,-796.19226871,0.00041748,2]
[399851418,1766743851450,-150.0,0.00041758,30]
[399851419,1766743851461,-150.0,0.00041863,30]
[399851420,1766743851471,-554.37,0.00041863,30]
[399851421,1766743851480,-150.0,0.00041863,30]
[399851422,1766743851490,-170.82,0.00041863,30]
[399851423,1766743851500,-554.37,0.00041863,30]
[399851424,1766743851510,-500.0,0.00041876,60]
[399851425,1766743851520,-150.0,0.0004188,30]
[399851426,1766743851530,-312.28509841,0.000419,120]
[399851427,1766743851540,-150.0,0.00041935,30]
[399851428,1766743851550,-50000.0,0.00042,42]
[399851429,1766743851560,-50000.0,0.00042,52]
[399851430,1766743851570,-50000.0,0.00042,62]
[399851431,1766743851580,-512.6302581,0.00042,30]
[399851432,1766743851589,-500.0,0.00042,120]
[399851433,1766743851599,-151.0,0.00042,2]
[399851434,1766743851609,-151.0,0.00042,2]
[399851435,1766743851619,-151.0,0.00042,120]
[399851436,1766743851628,-151.0,0.00042,120]
[399851437,1766743851638,-1076.08560631,0.00042,120]
[399851438,1766743851647,-150.0,0.00042026,30]
[399851439,1766743851657,-200.0,0.00042163,120]
[399851440,1766743851667,-150.0,0.00042173,30]
[399851441,1766743851677,-151.0,0.00042191,120]
[399851442,1766743851688,-2071.49,0.00042191,120]
[399851443,1766743851698,-4068.98,0.000422,14]
[399851444,1766743851707,-1543.69,0.000422,14]
[399851445,1766743851718,-1350.2,0.00042239,7]
[399851446,1766743851728,-312.2850984,0.00042246,120]
[399851447,1766743851738,-150.0,0.00042278,60]
[399851448,1766743851747,-373.07297731,0.00042292,2]